bitfinex-derivatives/quotes_BTCF0:USTF0_20210111
["timestamp","ask_amount","ask_price","bid_price","bid_amount"]
[1610364317347,0.2898,34873.0,34823.0,4.48987608]
[1610364317549,0.00035003,34871.0,34823.0,4.48987608]
[1610364317749,0.00035001,34872.0,34843.0,0.13632608]
[1610364317949,0.00035001,34872.0,34843.0,0.22733608]
[1610364318150,0.00035001,34870.0,34843.0,0.09101]
[1610364318350,0.00034999,34871.0,34843.0,0.09101]
[1610364318551,0.00034999,34869.0,34843.0,0.09101]
[1610364318750,0.07925999,34869.0,34843.0,0.09101]
[1610364318952,0.07891,34869.0,34843.0,0.09101]
[1610364319150,0.00035002,34868.0,34843.0,0.09101]
[1610364319550,0.00035002,34868.0,34823.0,4.26795]
[1610364319749,0.00035002,34868.0,34825.0,0.13632608]
[1610364321351,0.5941,34867.0,34825.0,0.13632608]
[1610364321754,0.13632608,34849.0,34847.0,0.13632608]
[1610364321955,0.5941,34867.0,34847.0,0.13632608]
[1610364322155,0.5941,34867.0,34847.0,0.08526]
[1610364322354,0.5941,34867.0,34838.0,0.0865]
[1610364322355,0.05106608,34842.0,34838.0,0.0865]
[1610364322555,0.00035001,34866.0,34830.0,0.0865]
[1610364322755,0.5941,34867.0,34830.0,0.17351]
[1610364325859,0.5941,34867.0,34840.0,0.13632608]
[1610364326062,0.5941,34867.0,34840.0,0.09289]
[1610364327662,0.5941,34867.0,34840.0,0.34289]
[1610364327862,0.13632608,34841.0,34840.0,0.34289]
[1610364328461,0.5941,34867.0,34840.0,0.34289]
[1610364329863,0.13632608,34850.0,34849.0,0.13632608]
[1610364330263,0.5941,34867.0,34849.0,0.13632608]
[1610364330465,0.5941,34867.0,34849.0,0.21105608]
[1610364330864,1.83299928,34893.0,34852.0,4.6893]
[1610364331264,0.2877,34895.0,34852.0,4.6893]
[1610364331868,0.2877,34895.0,34879.0,0.13632608]
[1610364332067,1.83606692,34903.0,34879.0,0.13632608]
[1610364332467,0.00034961,34902.0,34877.0,0.11112]
[1610364332667,0.00034961,34902.0,34868.0,0.06895]
[1610364332668,0.07377961,34902.0,34868.0,0.06895]
[1610364333068,0.07343,34902.0,34868.0,0.06895]
[1610364333668,3.8639,34910.0,34868.0,0.06895]
[1610364333867,3.8639,34910.0,34904.0,0.13632608]
[1610364334068,2.0007107,34937.0,34904.0,0.13632608]
[1610364334266,2.0007107,34937.0,34901.0,0.10007]
[1610364334471,0.08516,34937.0,34901.0,0.10007]
[1610364335868,0.08516,34937.0,34928.0,0.13632608]
[1610364336067,2.00715891,34964.0,34922.0,0.10633]
[1610364336269,2.00961532,34968.0,34922.0,0.10633]
[1610364336467,0.00034922,34963.0,34922.0,0.10633]
[1610364336667,0.07990922,34963.0,34922.0,0.10633]
[1610364337070,0.07956,34963.0,34922.0,0.10633]
[1610364337969,0.07956,34963.0,34936.0,0.13632608]
[1610364338168,0.07956,34963.0,34936.0,0.20635608]
[1610364339170,0.07956,34963.0,34936.0,0.07003]
[1610364339872,0.13632608,34937.0,34936.0,0.07003]
[1610364340971,0.13632608,34937.0,34927.0,3.2129]
[1610364341972,0.13632608,34928.0,34927.0,3.2129]
[1610364342174,0.09862,34954.0,34927.0,3.2999]
[1610364343176,0.07956,34963.0,34927.0,3.2999]
[1610364343376,0.2697,34978.0,34927.0,3.2999]
[1610364343976,0.2697,34978.0,34955.0,0.13632608]
[1610364344176,2.00200888,35004.0,34955.0,0.13632608]
[1610364344377,0.2708,35003.0,34955.0,0.13632608]
[1610364344779,0.2708,35003.0,34949.0,0.08074]
[1610364344977,4.58525,34983.0,34949.0,0.08074]
[1610364345877,0.13632608,34950.0,34949.0,0.08074]
[1610364346078,4.58525,34983.0,34949.0,0.08074]
[1610364346678,0.0854,34982.0,34949.0,0.08074]
[1610364347384,0.08455,34983.0,34949.0,0.08074]
[1610364347982,0.13632608,34950.0,34949.0,0.08074]
[1610364348982,0.13632608,34950.0,34938.0,3.4054]
[1610364349182,0.21556608,34950.0,34938.0,3.4054]
[1610364349582,0.21556608,34950.0,34908.0,7.3835]
[1610364349782,0.21556608,34950.0,34907.0,0.2895]
[1610364349985,0.13632608,34916.0,34907.0,0.2895]
[1610364350183,0.07924,34950.0,34907.0,0.2895]
[1610364351885,0.07924,34950.0,34925.0,0.13632608]
[1610364352089,0.07924,34950.0,34925.0,0.22151608]
[1610364352292,0.06846,34964.0,34925.0,0.22151608]
[1610364352693,2.00090013,35027.0,34925.0,0.22151608]
[1610364353086,2.00553898,35035.0,34925.0,0.22151608]
[1610364353487,2.09093898,35035.0,34925.0,0.22151608]
[1610364353685,0.0844,35041.0,34925.0,0.22151608]
[1610364353885,0.0844,35041.0,34964.0,0.13632608]
[1610364354085,0.0845,35047.0,34964.0,0.13632608]
[1610364354286,0.0845,35047.0,34964.0,0.22326608]
[1610364354685,0.0845,35047.0,34964.0,0.08694]
[1610364355286,0.0003486,35046.0,34955.0,0.10119]
[1610364355487,0.0725886,35046.0,34955.0,0.10119]
[1610364355886,0.00034863,35045.0,34955.0,0.10119]
[1610364357887,0.13632608,34956.0,34955.0,0.10119]
[1610364360089,0.05132608,34956.0,34955.0,0.10119]
[1610364360291,0.05132608,34956.0,34949.0,0.13632608]
[1610364360690,0.04682608,34956.0,34949.0,0.13632608]
[1610364361391,0.0988,34985.0,34949.0,0.13632608]
[1610364361793,0.0988,34985.0,34949.0,0.22250608]
[1610364361991,0.13632608,34970.0,34961.0,0.13632608]
[1610364362192,0.13632608,34970.0,34962.0,0.0864]
[1610364362393,0.0988,34985.0,34963.0,0.0859]
[1610364362593,0.06,34985.0,34963.0,0.0859]
[1610364362795,3.7097,34990.0,34963.0,0.0859]
[1610364363194,4.005,35023.0,34963.0,0.0859]
[1610364363593,0.00034847,35022.0,34963.0,0.0859]
[1610364363793,0.08139847,35022.0,34963.0,0.0859]
[1610364363994,0.08139847,35022.0,34979.0,0.13632608]
[1610364364194,0.08139847,35022.0,34979.0,0.22240608]
[1610364364495,0.00034845,35021.0,34979.0,0.22240608]
[1610364365093,0.00034845,35021.0,34980.0,0.0845]
[1610364365693,0.08105,35022.0,34980.0,0.0845]
[1610364365894,0.08105,35022.0,35002.0,0.13632608]
[1610364366093,0.08105,35022.0,35002.0,0.23941608]
[1610364366492,4.005,35023.0,35002.0,0.23941608]
[1610364368093,0.07224,35046.0,35022.0,0.13632608]
[1610364368296,2.06911922,35091.0,35022.0,0.13632608]
[1610364368496,0.0858,35094.0,35030.0,4.0232]
[1610364368694,0.27784792,35090.0,35030.0,4.12098]
[1610364368896,0.0866,35089.0,35030.0,4.12098]
[1610364369096,0.08694792,35089.0,35030.0,4.12098]
[1610364369298,0.00034792,35088.0,35030.0,4.12098]
[1610364369697,0.00034792,35088.0,35031.0,0.0847]
[1610364369898,0.00034794,35089.0,35030.0,4.12098]
[1610364370699,0.08524794,35089.0,35030.0,4.12098]
[1610364371098,0.00034803,35088.0,35030.0,4.12098]
[1610364371899,0.00034795,35089.0,35030.0,4.12098]
[1610364372108,0.13632608,35040.0,35035.0,0.13632608]
[1610364372715,0.13632608,35040.0,35030.0,4.12098]
[1610364373113,0.07245,35060.0,35030.0,4.12098]
[1610364373904,0.07245,35060.0,35031.0,0.085]
[1610364374104,0.07245,35060.0,35030.0,4.12098]
[1610364375305,0.07245,35060.0,35030.0,4.0232]
[1610364376104,0.13632608,35031.0,35030.0,4.0232]
[1610364376304,0.21769608,35031.0,35030.0,4.0232]
[1610364376704,0.21769608,35031.0,35002.0,3.39049]
[1610364376906,0.21769608,35031.0,35002.0,0.03009]
[1610364377304,0.21769608,35031.0,34990.0,0.25]
[1610364378105,0.13632608,34991.0,34990.0,0.25]
[1610364378907,0.08513,35005.0,34990.0,0.25]
[1610364380008,0.13632608,34991.0,34990.0,0.25]
[1610364380509,0.00942608,34991.0,34990.0,0.25]
[1610364380914,0.08513,35005.0,34990.0,0.25]
[1610364381111,0.10912,35014.0,34990.0,0.25]
[1610364381911,1.0,35027.0,34990.0,0.25]
[1610364382110,0.13632608,35018.0,35010.0,0.13632608]
[1610364382313,0.08137,35031.0,35010.0,0.13632608]
[1610364382512,1.0,35064.0,35010.0,0.23991608]
[1610364383011,0.00034804,35058.0,35010.0,0.23991608]
[1610364383210,1.0,35064.0,35010.0,0.23991608]
[1610364383812,0.00034798,35058.0,35010.0,0.23991608]
[1610364384012,0.00034798,35058.0,35029.0,0.13632608]
[1610364384613,1.0,35078.0,35029.0,0.13632608]
[1610364386017,0.13632608,35030.0,35026.0,0.10228]
[1610364387214,0.13632608,35030.0,35020.0,0.25]
[1610364388015,0.13632608,35021.0,35020.0,0.25]
[1610364391816,0.22542608,35021.0,35020.0,0.25]
[1610364392216,0.22577433,35021.0,35020.0,0.25]
[1610364392417,0.22577433,35021.0,35003.0,3.9905]
[1610364392917,0.00034825,35020.0,35003.0,3.9905]
[1610364394116,0.13632608,35004.0,35003.0,4.12682608]
[1610364394317,0.13632608,35004.0,35003.0,3.9905]
[1610364396522,0.13632608,35004.0,34987.0,0.07247]
[1610364396719,0.13632608,35004.0,34981.0,3.544]
[1610364398023,0.09394,35015.0,34982.0,0.13632608]
[1610364398625,0.00034824,35014.0,34982.0,0.13632608]
[1610364399425,0.10433,35023.0,34982.0,0.13632608]
[1610364399826,0.00034815,35022.0,34983.0,0.00029248]
[1610364400025,0.00034815,35022.0,35020.0,0.13632608]
[1610364400226,0.2724,35038.0,35020.0,0.13632608]
[1610364400426,0.2724,35038.0,35016.0,0.11066]
[1610364400627,0.2836,35054.0,35016.0,0.11066]
[1610364400628,0.00034806,35030.0,35016.0,0.11066]
[1610364400828,0.00034806,35037.0,35016.0,0.11066]
[1610364401227,0.00034806,35038.0,35016.0,0.11066]
[1610364401427,0.00034804,35036.0,35016.0,0.11066]
[1610364401629,0.00034801,35037.0,35016.0,0.11066]
[1610364402028,0.13632608,35017.0,35005.0,0.10174]
[1610364402629,0.09605,35035.0,35005.0,0.10174]
[1610364403031,0.00034803,35034.0,35005.0,0.10174]
[1610364403831,0.00034798,35037.0,35005.0,0.10174]
[1610364404033,0.13632608,35017.0,35014.0,0.13632608]
[1610364404431,0.00034797,35036.0,35014.0,0.13632608]
[1610364404632,0.2836,35054.0,35014.0,0.13632608]
[1610364404832,0.00034796,35035.0,35014.0,0.22681608]
[1610364405032,0.00034794,35038.0,35014.0,0.22681608]
[1610364406132,0.00034794,35038.0,35024.0,0.13632608]
[1610364406331,0.00034794,35038.0,35024.0,0.24973608]
[1610364406532,0.00034794,35051.0,35024.0,0.11341]
[1610364406733,0.00034794,35037.0,35024.0,0.11341]
[1610364406933,0.00034796,35050.0,35024.0,0.11341]
[1610364407332,0.00034796,35036.0,35014.0,0.09049]
[1610364407533,0.1001,35036.0,35014.0,0.09049]
[1610364407732,0.00034799,35035.0,35014.0,0.09049]
[1610364408133,0.13632608,35015.0,35014.0,0.09049]
[1610364408533,0.13632608,35015.0,35005.0,0.10174]
[1610364408534,0.13667415,35015.0,35005.0,0.10174]
[1610364408734,0.13667415,35015.0,35003.0,3.3194]
[1610364408934,0.06507415,35015.0,35003.0,3.3194]
[1610364409136,0.00034804,35014.0,35003.0,3.3194]
[1610364410137,0.13632608,35004.0,35003.0,3.3194]
[1610364411739,0.13667423,35004.0,35003.0,3.3194]
[1610364412339,0.00034815,35004.0,35003.0,3.3194]
[1610364412540,0.1001,35036.0,35003.0,3.3194]
[1610364412740,2.45484553,35039.0,35003.0,3.42975]
[1610364412941,0.00034807,35035.0,35003.0,3.42975]
[1610364413340,0.02653986,35038.0,35003.0,3.42975]
[1610364413541,0.00034802,35034.0,35003.0,3.42975]
[1610364413741,0.00034802,35037.0,35003.0,3.42975]
[1610364414142,0.000348,35040.0,35015.0,0.13632608]
[1610364414341,0.00034798,35036.0,35015.0,0.22382608]
[1610364414543,0.00034798,35039.0,35015.0,0.22382608]
[1610364414943,0.00034798,35035.0,35015.0,0.22382608]
[1610364415142,0.000348,35038.0,35015.0,0.22382608]
[1610364415458,0.000348,35034.0,35015.0,0.22382608]
[1610364415645,0.000348,35037.0,35015.0,0.22382608]
[1610364415843,0.000348,35033.0,35015.0,0.22382608]
[1610364416044,0.13632608,35016.0,35015.0,0.22382608]
[1610364416252,0.13632608,35016.0,35015.0,0.0875]
[1610364416647,0.13667409,35016.0,35015.0,0.0875]
[1610364419346,0.13667409,35016.0,35009.0,0.13632608]
[1610364419747,0.13667409,35016.0,35003.0,0.11035]
[1610364419947,0.00034805,35015.0,34995.0,3.2484]
[1610364420147,0.00034805,35015.0,35004.0,0.13632608]
[1610364420348,0.00034805,35015.0,35004.0,0.22508608]
[1610364420649,2.47497,35030.0,35004.0,0.22508608]
[1610364420849,0.00034805,35014.0,35004.0,0.22508608]
[1610364421048,0.00034805,35014.0,35004.0,0.08876]
[1610364421249,2.47937028,35028.0,35004.0,0.08876]
[1610364421448,0.07061,35036.0,35004.0,0.08876]
[1610364421449,0.00034807,35013.0,35004.0,0.08876]
[1610364421649,2.48144841,35026.0,35004.0,0.08876]
[1610364421849,2.47929657,35023.0,35004.0,0.08876]
[1610364422052,2.47739119,35020.0,35004.0,0.08876]
[1610364422249,0.13632608,35005.0,35004.0,0.08876]
[1610364422849,0.13667425,35005.0,34995.0,3.2484]
[1610364423250,0.00034824,35004.0,34995.0,3.2484]
[1610364424151,0.13632608,34996.0,34995.0,3.2484]
[1610364424555,0.13667432,34996.0,34995.0,3.2484]
[1610364424752,0.13667432,34996.0,34983.0,0.13632608]
[1610364425153,0.0003482,34995.0,34983.0,0.13632608]
[1610364426154,0.13632608,34984.0,34983.0,0.13632608]
[1610364429263,0.13632608,34984.0,34979.0,0.08608]
[1610364429463,0.13632608,34984.0,34962.0,0.0861]
[1610364429865,0.13632608,34984.0,34963.0,0.00030295]
[1610364430073,0.13632608,34984.0,34963.0,0.08329295]
[1610364430277,2.74121946,35006.0,34963.0,0.08329295]
[1610364430474,2.74121946,35006.0,34964.0,0.00030299]
[1610364430676,2.45569997,35003.0,34964.0,0.00030299]
[1610364431063,2.45044622,35001.0,34964.0,0.00030299]
[1610364431465,2.44958839,35000.0,34964.0,0.00030299]
[1610364431964,0.00034833,34999.0,34964.0,0.00030299]
[1610364432165,0.00034833,34999.0,34971.0,0.13632608]
[1610364432365,0.00034833,34999.0,34964.0,0.00030299]
[1610364432564,0.00034831,35000.0,34971.0,0.09564]
[1610364432764,0.00034831,34998.0,34971.0,0.09564]
[1610364432964,0.00034833,34999.0,34971.0,0.09564]
[1610364433166,2.45173658,34999.0,34971.0,0.09564]
[1610364433364,2.45138825,34999.0,34971.0,0.09564]
[1610364433565,0.00034833,34998.0,34971.0,0.09564]
[1610364433967,2.45650275,34997.0,34971.0,0.09564]
[1610364434169,0.13632608,34972.0,34971.0,0.09564]
[1610364435268,0.09292608,34972.0,34971.0,0.09564]
[1610364435474,2.45259031,34995.0,34971.0,0.09564]
[1610364435869,0.0003484,34994.0,34971.0,0.09564]
[1610364436170,2.45459759,34997.0,34973.0,0.13632608]
[1610364436370,0.0003484,34993.0,34973.0,0.13632608]
[1610364436771,0.0003484,34996.0,34971.0,0.09564]
[1610364436973,0.0003484,34992.0,34971.0,0.09564]
[1610364437173,0.00034842,34995.0,34971.0,0.09564]
[1610364437573,0.00034842,34996.0,34964.0,3.4221]
[1610364437774,0.00034844,34994.0,34964.0,3.4221]
[1610364437973,0.00034844,34995.0,34964.0,3.4221]
[1610364438175,2.46213586,34993.0,34966.0,0.13632608]
[1610364438374,2.46084056,34992.0,34966.0,0.13632608]
[1610364438575,2.46118903,34992.0,34966.0,0.13632608]
[1610364438775,2.4637818,34990.0,34966.0,0.13632608]
[1610364439175,0.00034847,34991.0,34966.0,0.13632608]
[1610364439376,0.00034844,34989.0,34966.0,0.13632608]
[1610364439576,0.00034844,34990.0,34966.0,0.13632608]
[1610364439880,0.00034844,34988.0,34966.0,0.13632608]
[1610364440076,0.00034844,34989.0,34966.0,0.13632608]
[1610364440277,0.13632608,34967.0,34966.0,0.13632608]
[1610364440677,0.13632608,34967.0,34964.0,3.4221]
[1610364443584,0.00034859,34966.0,34933.0,3.8883]
[1610364444184,0.00034859,34966.0,34940.0,0.13632608]
[1610364444386,0.00034859,34966.0,34940.0,0.22586608]
[1610364444587,0.00034862,34971.0,34940.0,0.22586608]
[1610364444888,0.00034862,34965.0,34940.0,0.22586608]
[1610364445087,0.09192,34965.0,34940.0,0.22586608]
[1610364445587,0.09192,34965.0,34940.0,0.08954]
[1610364445987,0.09192,34965.0,34933.0,3.8883]
[1610364446188,0.13632608,34934.0,34933.0,3.8883]
[1610364447789,0.22272608,34934.0,34933.0,3.9744]
[1610364448388,0.13632608,34934.0,34933.0,3.9744]
[1610364448588,0.1797,34947.0,34933.0,3.9744]
[1610364448989,0.0936,34947.0,34933.0,3.9744]
[1610364449789,0.09066,34954.0,34933.0,3.9744]
[1610364450194,0.13632608,34934.0,34933.0,3.9744]
[1610364450391,0.22192608,34934.0,34933.0,3.9744]
[1610364450791,2.608e-05,34934.0,34933.0,3.9744]
[1610364451096,0.086,34939.0,34933.0,3.9744]
[1610364451391,0.087,34946.0,34933.0,3.9744]
[1610364451793,0.09066,34954.0,34933.0,3.8883]
[1610364451992,2.40698796,34969.0,34933.0,3.8883]
[1610364452193,0.13632608,34934.0,34933.0,3.8883]
[1610364452828,0.13632608,34934.0,34922.0,0.07052]
[1610364453605,0.22174608,34934.0,34885.0,0.0849]
[1610364453815,0.0867,34933.0,34885.0,0.0849]
[1610364454006,0.22174608,34934.0,34885.0,0.0849]
[1610364454204,0.13632608,34886.0,34885.0,0.10926]
[1610364454809,0.13632608,34886.0,34885.0,0.19476]
[1610364455001,0.22232608,34886.0,34885.0,0.19476]
[1610364455800,0.13632608,34886.0,34885.0,0.19476]
[1610364456001,0.13632608,34886.0,34885.0,0.10926]
[1610364456400,0.13632608,34886.0,34865.0,0.13632608]
[1610364457001,0.13632608,34886.0,34824.0,0.087]
[1610364457403,0.2976,34885.0,34824.0,0.087]
[1610364457803,0.3823,34885.0,34824.0,0.087]
[1610364458203,0.13632608,34845.0,34834.0,0.13632608]
[1610364458403,0.13632608,34845.0,34830.0,0.0856]
[1610364458804,0.13632608,34845.0,34826.0,0.0864]
[1610364459005,0.13632608,34845.0,34798.0,0.2783]
[1610364459806,0.13632608,34845.0,34796.0,0.0865]
[1610364460406,0.2799,34859.0,34826.0,0.13632608]
[1610364460606,0.2799,34859.0,34826.0,0.21169608]
[1610364460805,0.0938,34860.0,34826.0,0.21169608]
[1610364461205,0.0938,34860.0,34826.0,0.07537]
[1610364462305,0.13632608,34827.0,34826.0,0.07537]
[1610364462505,0.10235,34853.0,34826.0,0.16157]
[1610364462709,0.10235,34853.0,34826.0,0.07537]
[1610364462906,0.10235,34853.0,34827.0,0.0867]
[1610364463307,0.08115,34853.0,34827.0,0.0867]
[1610364463507,0.0938,34860.0,34827.0,0.0867]
[1610364463706,0.3704,34875.0,34827.0,0.0867]
[1610364464309,0.2853,34875.0,34826.0,0.07537]
[1610364464908,0.0858,34874.0,34826.0,0.07537]
[1610364465111,0.2853,34875.0,34826.0,0.07537]
[1610364465711,0.2853,34875.0,34826.0,0.0989]
[1610364466311,0.13632608,34827.0,34807.0,0.13302608]
[1610364466511,0.13632608,34827.0,34826.0,0.07978]
[1610364467716,4.2341,34833.0,34826.0,0.07978]
[1610364468317,0.13632608,34827.0,34814.0,0.09157]
[1610364469318,0.13632608,34827.0,34804.0,0.0857]
[1610364469520,0.13632608,34827.0,34795.0,3.6851]
[1610364469719,0.13632608,34827.0,34796.0,0.0852]
[1610364469921,0.13632608,34827.0,34795.0,3.6851]
[1610364470120,0.13632608,34827.0,34796.0,0.11211]
[1610364470322,0.10139,34827.0,34817.0,0.13632608]
[1610364470722,0.10139,34827.0,34806.0,0.08627]
[1610364472423,0.10139,34827.0,34812.0,0.13632608]
[1610364474327,0.13632608,34813.0,34812.0,0.13632608]
[1610364474527,0.13632608,34813.0,34806.0,0.08627]
[1610364475729,0.13632608,34813.0,34796.0,0.11211]
[1610364475929,0.13632608,34813.0,34786.0,3.34]
[1610364476330,0.13632608,34788.0,34786.0,3.34]
[1610364476530,0.13632608,34788.0,34787.0,0.0853]
[1610364476729,0.13632608,34788.0,34787.0,0.11394]
[1610364477730,0.13632608,34788.0,34786.0,3.34]
[1610364480133,0.087,34787.0,34786.0,3.34]
[1610364480531,0.13632608,34788.0,34786.0,3.34]
[1610364481133,0.13632608,34788.0,34769.0,0.08027]
[1610364481734,0.13302608,34788.0,34769.0,0.08027]
[1610364481934,3.611,34795.0,34769.0,0.08027]
[1610364482234,3.4982,34795.0,34769.0,0.08027]
[1610364482434,0.07979,34800.0,34792.0,0.13632608]
[1610364482634,0.0862,34805.0,34792.0,0.13632608]
[1610364483035,0.0863,34815.0,34792.0,0.13632608]
[1610364484037,0.10579,34820.0,34792.0,0.13632608]
[1610364484438,0.13632608,34793.0,34792.0,0.13632608]
[1610364484838,0.13172608,34793.0,34792.0,0.13632608]
[1610364485039,0.07846,34817.0,34792.0,0.13632608]
[1610364486441,0.07846,34817.0,34810.0,0.13632608]
[1610364486840,0.07846,34817.0,34795.0,0.09686]
[1610364487239,0.07846,34817.0,34799.0,4.0606]
[1610364488441,0.13632608,34801.0,34799.0,4.0606]
[1610364489642,0.12762608,34801.0,34799.0,4.0606]
[1610364490041,0.08888,34806.0,34799.0,4.0606]
[1610364490443,0.08888,34806.0,34780.0,0.09173]
[1610364490642,0.13632608,34781.0,34780.0,0.09173]
[1610364490842,0.13632608,34781.0,34780.0,0.04923]
[1610364491043,0.13632608,34781.0,34780.0,0.03763]
[1610364491242,0.13632608,34781.0,34751.0,0.13632608]
[1610364491243,0.13632608,34781.0,34726.0,0.0861]
[1610364491646,0.13632608,34781.0,34727.0,0.00029943]
[1610364491845,0.13632608,34781.0,34727.0,0.07871943]
[1610364492044,0.2756,34780.0,34727.0,0.07871943]
[1610364492246,0.2756,34780.0,34727.0,0.07842]
[1610364492645,0.2756,34780.0,34743.0,0.13632608]
[1610364492845,0.2756,34780.0,34739.0,0.0708]
[1610364493446,0.00035054,34779.0,34739.0,0.0708]
[1610364493646,0.09556054,34779.0,34739.0,0.0708]
[1610364494048,0.00035063,34778.0,34739.0,0.1572]
[1610364494647,0.13632608,34757.0,34739.0,0.1572]
[1610364495049,0.13632608,34757.0,34739.0,0.0708]
[1610364495249,0.13632608,34757.0,34727.0,0.07842]
[1610364495650,0.13632608,34757.0,34728.0,0.00029949]
[1610364495850,0.07245,34761.0,34728.0,0.00029949]
[1610364496250,3.6651,34762.0,34728.0,0.08749949]
[1610364496450,3.6651,34762.0,34728.0,0.0872]
[1610364496651,0.13632608,34754.0,34746.0,0.13632608]
[1610364496853,0.13632608,34754.0,34740.0,0.0864]
[1610364497250,0.13632608,34754.0,34728.0,0.0872]
[1610364497451,0.13632608,34754.0,34728.0,4.2318]
[1610364498052,0.13632608,34754.0,34728.0,4.1446]
[1610364498653,0.10478,34758.0,34737.0,0.13632608]
[1610364499254,0.10478,34758.0,34728.0,4.1446]
[1610364499855,0.10478,34758.0,34709.0,3.3166]
[1610364500457,0.10478,34758.0,34710.0,0.00029961]
[1610364500657,0.10478,34758.0,34718.0,0.13632608]
[1610364501258,0.10478,34758.0,34710.0,0.08388]
[1610364501858,4.1163,34764.0,34710.0,0.08388]
[1610364504062,4.1163,34764.0,34709.0,3.3166]
[1610364504262,4.19085,34764.0,34709.0,3.3166]
[1610364504664,4.19085,34764.0,34714.0,0.13632608]
[1610364505064,4.19085,34764.0,34709.0,3.3166]
[1610364505463,0.07455,34764.0,34699.0,0.07925]
[1610364505664,0.00035079,34763.0,34699.0,0.07925]
[1610364505864,0.0859,34762.0,34699.0,0.07925]
[1610364506065,0.0859,34762.0,34665.0,0.3179]
[1610364506271,0.00035085,34761.0,34638.0,0.1556]
[1610364506463,0.00035085,34761.0,34673.0,0.00029976]
[1610364506662,0.0859,34762.0,34685.0,0.13632608]
[1610364507664,0.0859,34762.0,34673.0,0.07314]
[1610364508268,0.00035097,34761.0,34673.0,0.07314]
[1610364508668,0.13632608,34674.0,34673.0,0.07314]
[1610364509666,0.13632608,34674.0,34666.0,0.13632608]
[1610364510667,0.10124,34685.0,34666.0,0.13632608]
[1610364510668,0.13632608,34667.0,34666.0,0.13632608]
[1610364510868,0.10124,34685.0,34666.0,0.13632608]
[1610364512570,3.5912,34718.0,34667.0,0.0865]
[1610364512767,3.5912,34718.0,34667.0,0.19383]
[1610364513369,0.13632608,34709.0,34702.0,0.13632608]
[1610364513567,0.23071608,34709.0,34702.0,0.13632608]
[1610364513968,0.23071608,34709.0,34667.0,0.19383]
[1610364515271,0.13632608,34705.0,34688.0,0.13632608]
[1610364516071,0.09439,34709.0,34688.0,0.13632608]
[1610364516471,3.5912,34718.0,34688.0,0.13632608]
[1610364516871,3.5912,34718.0,34685.0,0.10139]
[1610364517271,3.5912,34718.0,34712.0,0.13632608]
[1610364517675,0.09178,34719.0,34698.0,0.16899]
[1610364517871,0.0859,34718.0,34698.0,0.16899]
[1610364518072,0.09178,34719.0,34698.0,0.16899]
[1610364518471,0.09178,34719.0,34698.0,0.0853]
[1610364519274,0.09178,34719.0,34695.0,0.07634]
[1610364519474,0.13632608,34716.0,34695.0,0.07634]
[1610364521174,0.09178,34719.0,34695.0,0.07634]
[1610364521374,0.13632608,34730.0,34718.0,0.13632608]
[1610364522176,0.13632608,34730.0,34707.0,0.07921]
[1610364522377,0.22359608,34730.0,34707.0,0.07921]
[1610364522977,0.22359608,34730.0,34695.0,0.07634]
[1610364523379,0.08727,34730.0,34695.0,0.07634]
[1610364523779,0.08727,34730.0,34715.0,0.13632608]
[1610364523979,0.08727,34730.0,34695.0,0.07634]
[1610364524381,0.08727,34730.0,34688.0,4.7976]
[1610364525784,0.08727,34730.0,34701.0,0.13632608]
[1610364526587,0.00035102,34729.0,34701.0,0.13632608]
[1610364526787,0.00035102,34729.0,34702.0,0.00029985]
[1610364527187,0.00035102,34729.0,34685.0,0.00029985]
[1610364527889,0.00035102,34729.0,34693.0,0.13632608]
[1610364528288,0.00035102,34729.0,34694.0,0.00029985]
[1610364528788,0.00035102,34729.0,34683.0,0.00029987]
[1610364529888,0.00035102,34729.0,34684.0,0.13632608]
[1610364530493,0.00035102,34729.0,34685.0,0.00029991]
[1610364531091,0.02596922,34729.0,34683.0,0.00029995]
[1610364531292,0.02596922,34729.0,34660.0,0.1103]
[1610364531693,1.74446228,34722.0,34661.0,0.0266471]
[1610364531893,1.74304811,34721.0,34667.0,0.13632608]
[1610364532093,1.76901796,34721.0,34667.0,0.13632608]
[1610364532293,1.76661406,34720.0,34668.0,0.02664879]
[1610364532492,1.83685212,34720.0,34668.0,0.00030003]
[1610364532693,1.74437823,34718.0,34668.0,0.00030003]
[1610364533094,0.08958,34722.0,34668.0,0.00030003]
[1610364533095,1.77877683,34717.0,34668.0,0.00030003]
[1610364533293,1.84902021,34717.0,34668.0,0.00030003]
[1610364533497,1.75470414,34713.0,34668.0,0.00030003]
[1610364533693,1.82474414,34713.0,34668.0,0.00030003]
[1610364533899,0.13632608,34669.0,34668.0,0.00030003]
[1610364534695,0.13632608,34669.0,34630.0,0.02665021]
[1610364534900,0.13632608,34669.0,34668.0,0.00030007]
[1610364535296,0.13632608,34669.0,34645.0,0.10151]
[1610364535497,0.13632608,34669.0,34668.0,0.00030007]
[1610364535697,0.13632608,34669.0,34646.0,0.02665366]
[1610364535903,0.13632608,34669.0,34663.0,0.13632608]
[1610364536111,0.10489,34673.0,34668.0,0.00030009]
[1610364536301,0.10489,34673.0,34664.0,0.00030009]
[1610364536502,0.10489,34673.0,34663.0,0.13632608]
[1610364536927,0.08659,34689.0,34664.0,0.0876]
[1610364537110,0.0854,34699.0,34664.0,0.15757945]
[1610364537301,0.07675,34700.0,34664.0,0.1573]
[1610364537515,0.07675,34700.0,34665.0,0.00027943]
[1610364537899,0.13632608,34683.0,34678.0,0.13632608]
[1610364538098,0.13632608,34683.0,34679.0,0.0872]
[1610364538301,0.13632608,34683.0,34670.0,0.0857]
[1610364538498,0.13632608,34683.0,34664.0,0.1573]
[1610364538698,0.13632608,34683.0,34671.0,0.0002794]
[1610364538898,0.13632608,34683.0,34665.0,0.0002794]
[1610364539100,0.20981608,34683.0,34664.0,0.0697]
[1610364539298,0.0868,34682.0,34665.0,0.0869]
[1610364539800,0.13632608,34666.0,34665.0,0.0869]
[1610364540402,0.24757608,34666.0,34665.0,0.0869]
[1610364540603,0.24757608,34666.0,34646.0,0.0862]
[1610364540805,0.24757608,34666.0,34645.0,0.23783608]
[1610364541403,0.11125,34666.0,34645.0,0.23783608]
[1610364541602,0.07123,34690.0,34652.0,0.0862]
[1610364541805,0.07123,34690.0,34686.0,0.13632608]
[1610364542003,0.07123,34690.0,34657.0,0.0866]